[Event "Titled Tuesday Blitz January 11 2022"]
[White "Nazari, Arad"]
[Black "Svane, Rasmus"]
[WhiteFideId "12577324"]
[BlackFideId "4657101"]
[WhiteElo "2120"]
[BlackElo "2645"]
[Result "1/2-1/2"]
[Round "05"]
[TimeControl "180+1"]
[Date "2022.01.11"]
[WhiteClock "0:00:12"]
[BlackClock "0:00:06"]

1. e4 {[%clk 0:03:00]}  c6 {[%clk 0:02:59]} 2. Nf3 {[%clk 0:02:58]}  d5 {[%clk 0:03:00]} 3. Nc3 {[%clk 0:02:57]}  dxe4 {[%clk 0:03:00]} 4. Nxe4 {[%clk 0:02:47]}  Nf6 {[%clk 0:03:01]} 5. Qe2 {[%clk 0:02:46]}  Nxe4 {[%clk 0:03:01]} 6. Qxe4 {[%clk 0:02:47]}  Qa5 {[%clk 0:03:02]} 7. Bc4 {[%clk 0:02:48]}  Bf5 {[%clk 0:03:02]} 8. Qf4 {[%clk 0:02:47]}  e6 {[%clk 0:03:01]} 9. O-O {[%clk 0:02:46]}  Be7 {[%clk 0:02:53]} 10. c3 {[%clk 0:02:34]}  O-O {[%clk 0:02:52]} 11. d4 {[%clk 0:02:34]}  Nd7 {[%clk 0:02:46]} 12. Qg3 {[%clk 0:02:32]}  Rfe8 {[%clk 0:02:22]} 13. Re1 {[%clk 0:02:27]}  Rac8 {[%clk 0:02:14]} 14. Bg5 {[%clk 0:02:17]}  Bxg5 {[%clk 0:02:12]} 15. Nxg5 {[%clk 0:02:13]}  Qc7 {[%clk 0:02:09]} 16. Qxc7 {[%clk 0:02:07]}  Rxc7 {[%clk 0:02:10]} 17. Rad1 {[%clk 0:02:03]}  Rd8 {[%clk 0:02:08]} 18. h3 {[%clk 0:01:59]}  Nb6 {[%clk 0:02:04]} 19. Bb3 {[%clk 0:01:56]}  Nd5 {[%clk 0:01:53]} 20. Nf3 {[%clk 0:01:54]}  h6 {[%clk 0:01:51]} 21. Ne5 {[%clk 0:01:48]}  Kf8 {[%clk 0:01:50]} 22. Rd2 {[%clk 0:01:44]}  Nf6 {[%clk 0:01:48]} 23. Nf3 {[%clk 0:01:39]}  Rcd7 {[%clk 0:01:41]} 24. Ne5 {[%clk 0:01:38]}  Rc7 {[%clk 0:01:38]} 25. Nf3 {[%clk 0:01:38]}  Rcc8 {[%clk 0:01:34]} 26. Bc2 {[%clk 0:01:26]}  Bxc2 {[%clk 0:01:30]} 27. Rxc2 {[%clk 0:01:27]}  c5 {[%clk 0:01:31]} 28. Rd2 {[%clk 0:01:24]}  cxd4 {[%clk 0:01:29]} 29. Rxd4 {[%clk 0:01:22]}  Rxd4 {[%clk 0:01:26]} 30. Nxd4 {[%clk 0:01:23]}  Nd5 {[%clk 0:01:26]} 31. Rd1 {[%clk 0:01:23]}  a6 {[%clk 0:01:26]} 32. g3 {[%clk 0:01:22]}  b5 {[%clk 0:01:24]} 33. a3 {[%clk 0:01:19]}  Nb6 {[%clk 0:01:21]} 34. Rd2 {[%clk 0:00:39]}  Nc4 {[%clk 0:01:21]} 35. Re2 {[%clk 0:00:39]}  Rd8 {[%clk 0:01:20]} 36. Kg2 {[%clk 0:00:38]}  g6 {[%clk 0:01:12]} 37. h4 {[%clk 0:00:37]}  e5 {[%clk 0:01:06]} 38. Nc6 {[%clk 0:00:36]}  Rd5 {[%clk 0:00:57]} 39. b3 {[%clk 0:00:34]}  Nxa3 {[%clk 0:00:56]} 40. Nxe5 {[%clk 0:00:34]}  Kg7 {[%clk 0:00:50]} 41. c4 {[%clk 0:00:34]}  bxc4 {[%clk 0:00:43]} 42. Nxc4 {[%clk 0:00:35]}  Nxc4 {[%clk 0:00:31]} 43. bxc4 {[%clk 0:00:36]}  Rd7 {[%clk 0:00:32]} 44. Ra2 {[%clk 0:00:36]}  Ra7 {[%clk 0:00:32]} 45. Ra5 {[%clk 0:00:37]}  Kf6 {[%clk 0:00:32]} 46. Kf3 {[%clk 0:00:37]}  Ke6 {[%clk 0:00:32]} 47. Ke4 {[%clk 0:00:38]}  Kd6 {[%clk 0:00:33]} 48. Kd4 {[%clk 0:00:38]}  Kc6 {[%clk 0:00:33]} 49. c5 {[%clk 0:00:31]}  Ra8 {[%clk 0:00:33]} 50. Kc4 {[%clk 0:00:31]}  Kb7 {[%clk 0:00:32]} 51. Ra1 {[%clk 0:00:29]}  Kc7 {[%clk 0:00:27]} 52. Re1 {[%clk 0:00:27]}  Kd7 {[%clk 0:00:25]} 53. Kd5 {[%clk 0:00:28]}  Rd8 {[%clk 0:00:03]} 54. c6+ {[%clk 0:00:27]}  Kc8+ {[%clk 0:00:03]} 55. Kc5 {[%clk 0:00:27]}  Rd2 {[%clk 0:00:03]} 56. Kb6 {[%clk 0:00:28]}  Rb2+ {[%clk 0:00:03]} 57. Kxa6 {[%clk 0:00:28]}  Rxf2 {[%clk 0:00:04]} 58. Kb6 {[%clk 0:00:28]}  Rb2+ {[%clk 0:00:04]} 59. Kc5 {[%clk 0:00:29]}  f5 {[%clk 0:00:04]} 60. Kd6 {[%clk 0:00:28]}  Rd2+ {[%clk 0:00:05]} 61. Ke5 {[%clk 0:00:25]}  Rc2 {[%clk 0:00:05]} 62. Kd6 {[%clk 0:00:23]}  Rd2+ {[%clk 0:00:05]} 63. Ke6 {[%clk 0:00:18]}  Rc2 {[%clk 0:00:06]} 64. Kd6 {[%clk 0:00:12]}  Rd2+ {[%clk 0:00:06]} 1/2-1/2


[Site "https://www.chess.com"]

[Event "Titled Tuesday Blitz January 11 2022"]
[White "Nesterov, Arseniy"]
[Black "Goltsev, Dmitry"]
[WhiteFideId "24198455"]
[BlackFideId "24176710"]
[WhiteElo "2489"]
[BlackElo "2273"]
[Result "1-0"]
[Round "05"]
[TimeControl "180+1"]
[Date "2022.01.11"]
[WhiteClock "0:00:03"]
[BlackClock "0:00:05"]

1. d4 {[%clk 0:03:00]}  Nf6 {[%clk 0:02:59]} 2. c4 {[%clk 0:03:01]}  e6 {[%clk 0:02:58]} 3. Nc3 {[%clk 0:03:01]}  b6 {[%clk 0:02:56]} 4. e4 {[%clk 0:03:01]}  Bb7 {[%clk 0:02:56]} 5. Bd3 {[%clk 0:02:59]}  d6 {[%clk 0:02:55]} 6. Nge2 {[%clk 0:02:58]}  e5 {[%clk 0:02:55]} 7. O-O {[%clk 0:02:58]}  Nbd7 {[%clk 0:02:55]} 8. f4 {[%clk 0:02:55]}  exd4 {[%clk 0:02:54]} 9. Nxd4 {[%clk 0:02:56]}  Nc5 {[%clk 0:02:55]} 10. Bc2 {[%clk 0:02:56]}  Be7 {[%clk 0:02:54]} 11. e5 {[%clk 0:02:37]}  dxe5 {[%clk 0:02:55]} 12. fxe5 {[%clk 0:02:38]}  Nfe4 {[%clk 0:02:47]} 13. Nxe4 {[%clk 0:02:23]}  Bxe4 {[%clk 0:02:40]} 14. Bxe4 {[%clk 0:02:06]}  Nxe4 {[%clk 0:02:40]} 15. Be3 {[%clk 0:02:01]}  O-O {[%clk 0:02:33]} 16. Qg4 {[%clk 0:01:48]}  Nc5 {[%clk 0:02:20]} 17. Nf5 {[%clk 0:01:46]}  g6 {[%clk 0:02:16]} 18. Rad1 {[%clk 0:01:40]}  Qe8 {[%clk 0:02:10]} 19. Bh6 {[%clk 0:01:21]}  Ne6 {[%clk 0:02:08]} 20. Nxe7+ {[%clk 0:01:18]}  Qxe7 {[%clk 0:02:04]} 21. Bxf8 {[%clk 0:01:19]}  Rxf8 {[%clk 0:02:05]} 22. Rd5 {[%clk 0:01:11]}  a5 {[%clk 0:02:03]} 23. h3 {[%clk 0:01:06]}  Nc5 {[%clk 0:02:00]} 24. Qf4 {[%clk 0:00:56]}  Re8 {[%clk 0:01:58]} 25. Qf6 {[%clk 0:00:49]}  Nd7 {[%clk 0:01:54]} 26. Qxe7 {[%clk 0:00:40]}  Rxe7 {[%clk 0:01:55]} 27. Re1 {[%clk 0:00:41]}  f6 {[%clk 0:01:48]} 28. e6 {[%clk 0:00:35]}  Nc5 {[%clk 0:01:48]} 29. Rd8+ {[%clk 0:00:21]}  Kg7 {[%clk 0:01:48]} 30. Rc8 {[%clk 0:00:20]}  Nxe6 {[%clk 0:01:47]} 31. a3 {[%clk 0:00:19]}  Kf7 {[%clk 0:01:46]} 32. b4 {[%clk 0:00:20]}  axb4 {[%clk 0:01:44]} 33. axb4 {[%clk 0:00:20]}  Rd7 {[%clk 0:01:44]} 34. Kf2 {[%clk 0:00:09]}  Rd4 {[%clk 0:01:42]} 35. Rc1 {[%clk 0:00:08]}  Rd2+ {[%clk 0:01:41]} 36. Kg3 {[%clk 0:00:08]}  Rd3+ {[%clk 0:01:40]} 37. Kh2 {[%clk 0:00:08]}  Rd2 {[%clk 0:01:40]} 38. c5 {[%clk 0:00:08]}  bxc5 {[%clk 0:01:38]} 39. bxc5 {[%clk 0:00:09]}  f5 {[%clk 0:01:30]} 40. c6 {[%clk 0:00:09]}  Rd6 {[%clk 0:01:29]} 41. Kg1 {[%clk 0:00:06]}  h5 {[%clk 0:01:28]} 42. h4 {[%clk 0:00:05]}  Kf6 {[%clk 0:01:26]} 43. Kf2 {[%clk 0:00:06]}  Ke5 {[%clk 0:01:25]} 44. Rg8 {[%clk 0:00:05]}  Kf6 {[%clk 0:01:18]} 45. Rc8 {[%clk 0:00:05]}  Ke5 {[%clk 0:01:17]} 46. Rc2 {[%clk 0:00:04]}  f4 {[%clk 0:01:11]} 47. Re2+ {[%clk 0:00:04]}  Kf5 {[%clk 0:01:09]} 48. Rc2 {[%clk 0:00:04]}  Kg4 {[%clk 0:01:01]} 49. Rc4 {[%clk 0:00:02]}  Kxh4 {[%clk 0:01:00]} 50. g3+ {[%clk 0:00:03]}  Kg4 {[%clk 0:00:59]} 51. gxf4 {[%clk 0:00:04]}  h4 {[%clk 0:00:57]} 52. Rg8 {[%clk 0:00:02]}  Nxf4 {[%clk 0:00:54]} 53. Rg7 {[%clk 0:00:03]}  Rd2+ {[%clk 0:00:45]} 54. Ke1 {[%clk 0:00:03]}  Ra2 {[%clk 0:00:35]} 55. Rxc7 {[%clk 0:00:02]}  h3 {[%clk 0:00:26]} 56. Rh7 {[%clk 0:00:03]}  Ra8 {[%clk 0:00:14]} 57. c7 {[%clk 0:00:03]}  Rc8 {[%clk 0:00:10]} 58. Kf2 {[%clk 0:00:04]}  g5 {[%clk 0:00:10]} 59. Rd7 {[%clk 0:00:04]}  h2 {[%clk 0:00:08]} 60. Rh7 {[%clk 0:00:04]}  Kf5 {[%clk 0:00:06]} 61. Rxh2 {[%clk 0:00:04]}  Ne6 {[%clk 0:00:07]} 62. Rh7 {[%clk 0:00:04]}  g4 {[%clk 0:00:07]} 63. Kg3 {[%clk 0:00:04]}  Ke5 {[%clk 0:00:06]} 64. Kxg4 {[%clk 0:00:03]}  Kd6 {[%clk 0:00:06]} 65. Rh6 {[%clk 0:00:03]}  Kd5 {[%clk 0:00:06]} 66. Rc1 {[%clk 0:00:02]}  Nxc7 {[%clk 0:00:02]} 67. Rg6 {[%clk 0:00:02]}  Ke5 {[%clk 0:00:02]} 68. Rg7 {[%clk 0:00:02]}  Kd6 {[%clk 0:00:03]} 69. Rg6+ {[%clk 0:00:02]}  Kd7 {[%clk 0:00:04]} 70. Rg7+ {[%clk 0:00:02]}  Kd6 {[%clk 0:00:04]} 71. Rd1+ {[%clk 0:00:03]}  Kc6 {[%clk 0:00:05]} 72. Kf5 {[%clk 0:00:04]}  Rf8+ {[%clk 0:00:05]} 73. Kg6 {[%clk 0:00:04]}  Nb5 {[%clk 0:00:05]} 74. Rc1+ {[%clk 0:00:03]}  Kb6 {[%clk 0:00:05]} 75. Rd7 {[%clk 0:00:03]}  Rb8 {[%clk 0:00:04]} 76. Kf6 {[%clk 0:00:03]}  Rb7 {[%clk 0:00:05]} 77. Rd3 {[%clk 0:00:03]}  Rc7 {[%clk 0:00:05]} 78. Rb1 {[%clk 0:00:03]}  Rc6+ {[%clk 0:00:05]} 79. Ke5 {[%clk 0:00:03]}  Rc5+ {[%clk 0:00:06]} 80. Kf4 {[%clk 0:00:03]}  Rh5 {[%clk 0:00:07]} 81. Rd2 {[%clk 0:00:03]}  Rc5 {[%clk 0:00:08]} 82. Ke4 {[%clk 0:00:03]}  Rc4+ {[%clk 0:00:08]} 83. Kd5 {[%clk 0:00:03]}  Rc5+ {[%clk 0:00:07]} 84. Ke4 {[%clk 0:00:03]}  Rh5 {[%clk 0:00:08]} 85. Kf4 {[%clk 0:00:03]}  Rc5 {[%clk 0:00:08]} 86. Rdb2 {[%clk 0:00:03]}  Kc6 {[%clk 0:00:09]} 87. Rh1 {[%clk 0:00:03]}  Nd6 {[%clk 0:00:09]} 88. Rh6 {[%clk 0:00:03]}  Rc4+ {[%clk 0:00:09]} 89. Ke5 {[%clk 0:00:03]}  Re4+ {[%clk 0:00:09]} 90. Kf6 {[%clk 0:00:03]}  Rd4 {[%clk 0:00:10]} 91. Ke6 {[%clk 0:00:03]}  Re4+ {[%clk 0:00:10]} 92. Kf6 {[%clk 0:00:04]}  Rf4+ {[%clk 0:00:09]} 93. Kg6 {[%clk 0:00:03]}  Rg4+ {[%clk 0:00:08]} 94. Kh5 {[%clk 0:00:04]}  Rd4 {[%clk 0:00:08]} 95. Kg5 {[%clk 0:00:04]}  Rd5+ {[%clk 0:00:08]} 96. Kf4 {[%clk 0:00:04]}  Rd4+ {[%clk 0:00:08]} 97. Ke3 {[%clk 0:00:04]}  Rd5 {[%clk 0:00:08]} 98. Rc2+ {[%clk 0:00:04]}  Rc5 {[%clk 0:00:09]} 99. Rd2 {[%clk 0:00:04]}  Rd5 {[%clk 0:00:09]} 100. Rc2+ {[%clk 0:00:04]}  Rc5 {[%clk 0:00:10]} 101. Rf2 {[%clk 0:00:05]}  Kd7 {[%clk 0:00:08]} 102. Rg6 {[%clk 0:00:04]}  Re5+ {[%clk 0:00:08]} 103. Kd4 {[%clk 0:00:04]}  Re6 {[%clk 0:00:08]} 104. Rg7+ {[%clk 0:00:04]}  Kc6 {[%clk 0:00:08]} 105. Rc2+ {[%clk 0:00:04]}  Kb6 {[%clk 0:00:08]} 106. Kd5 {[%clk 0:00:05]}  Nf5 {[%clk 0:00:06]} 107. Rb2+ {[%clk 0:00:02]}  Ka6 {[%clk 0:00:05]} 108. Rg8 {[%clk 0:00:02]}  Re7 {[%clk 0:00:04]} 109. Ra8+ {[%clk 0:00:01]}  Ra7 {[%clk 0:00:05]} 110. Ra2+ {[%clk 0:00:02]}  Kb6 {[%clk 0:00:05]} 111. R2xa7 {[%clk 0:00:03]}  Ne3+ {[%clk 0:00:05]} 112. Kd4 {[%clk 0:00:03]}  Nc2+ {[%clk 0:00:05]} 113. Kc3 {[%clk 0:00:03]}  Ne3 {[%clk 0:00:05]} 114. Rd7 {[%clk 0:00:03]}  Nf5 {[%clk 0:00:05]} 115. Re8 {[%clk 0:00:03]}  Kc6 {[%clk 0:00:05]} 116. Rf7 {[%clk 0:00:03]}  Nd6 {[%clk 0:00:05]} 117. Re6 {[%clk 0:00:03]} 1-0


[Site "https://www.chess.com"]

[Event "Titled Tuesday Blitz January 11 2022"]
[White "Nevednichy, Vladislav"]
[Black "Erigaisi Arjun"]
[WhiteFideId "1205730"]
[BlackFideId "35009192"]
[WhiteElo "2370"]
[BlackElo "2745"]
[Result "0-1"]
[Round "05"]
[TimeControl "180+1"]
[Date "2022.01.11"]
[WhiteClock "0:01:11"]
[BlackClock "0:00:54"]

1. e4 {[%clk 0:03:00]}  g6 {[%clk 0:02:59]} 2. d4 {[%clk 0:03:00]}  d6 {[%clk 0:02:59]} 3. Nf3 {[%clk 0:02:58]}  Nf6 {[%clk 0:02:59]} 4. Bd3 {[%clk 0:02:56]}  Bg7 {[%clk 0:02:59]} 5. O-O {[%clk 0:02:56]}  O-O {[%clk 0:03:00]} 6. c3 {[%clk 0:02:54]}  Bg4 {[%clk 0:02:59]} 7. Nbd2 {[%clk 0:02:53]}  Nc6 {[%clk 0:02:58]} 8. h3 {[%clk 0:02:53]}  Bd7 {[%clk 0:02:57]} 9. Re1 {[%clk 0:02:45]}  e5 {[%clk 0:02:56]} 10. dxe5 {[%clk 0:02:43]}  Nxe5 {[%clk 0:02:57]} 11. Nxe5 {[%clk 0:02:42]}  dxe5 {[%clk 0:02:57]} 12. Nf3 {[%clk 0:02:41]}  Qe7 {[%clk 0:02:57]} 13. Bc4 {[%clk 0:02:39]}  Bc6 {[%clk 0:02:56]} 14. Bg5 {[%clk 0:02:37]}  h6 {[%clk 0:02:56]} 15. Bxf6 {[%clk 0:02:37]}  Bxf6 {[%clk 0:02:57]} 16. b4 {[%clk 0:02:36]}  Rad8 {[%clk 0:02:56]} 17. Qc2 {[%clk 0:02:34]}  Kg7 {[%clk 0:02:55]} 18. a4 {[%clk 0:02:34]}  b6 {[%clk 0:02:54]} 19. a5 {[%clk 0:02:34]}  b5 {[%clk 0:02:54]} 20. Bf1 {[%clk 0:02:30]}  a6 {[%clk 0:02:53]} 21. Nd2 {[%clk 0:02:28]}  Qe6 {[%clk 0:02:49]} 22. Be2 {[%clk 0:02:21]}  Be7 {[%clk 0:02:47]} 23. Nf1 {[%clk 0:02:17]}  Bb7 {[%clk 0:02:36]} 24. Bg4 {[%clk 0:02:17]}  f5 {[%clk 0:02:34]} 25. Bf3 {[%clk 0:02:14]}  f4 {[%clk 0:02:30]} 26. Bg4 {[%clk 0:02:10]}  Qf7 {[%clk 0:02:24]} 27. Rad1 {[%clk 0:02:06]}  c5 {[%clk 0:02:18]} 28. bxc5 {[%clk 0:02:01]}  Bxc5 {[%clk 0:02:19]} 29. Nd2 {[%clk 0:01:56]}  Ba7 {[%clk 0:02:10]} 30. Nf3 {[%clk 0:01:51]}  Qf6 {[%clk 0:01:56]} 31. h4 {[%clk 0:01:50]}  Rxd1 {[%clk 0:01:48]} 32. Rxd1 {[%clk 0:01:49]}  Rf7 {[%clk 0:01:49]} 33. c4 {[%clk 0:01:47]}  Rc7 {[%clk 0:01:46]} 34. Rd7+ {[%clk 0:01:44]}  Rxd7 {[%clk 0:01:46]} 35. Bxd7 {[%clk 0:01:45]}  Qd6 {[%clk 0:01:42]} 36. Bg4 {[%clk 0:01:34]}  b4 {[%clk 0:01:38]} 37. h5 {[%clk 0:01:33]}  g5 {[%clk 0:01:32]} 38. Kh2 {[%clk 0:01:29]}  Bc5 {[%clk 0:01:20]} 39. Bf5 {[%clk 0:01:26]}  Kf6 {[%clk 0:01:15]} 40. Kh3 {[%clk 0:01:26]}  Qd8 {[%clk 0:00:59]} 41. Nh2 {[%clk 0:01:22]}  Qxa5 {[%clk 0:00:56]} 42. Ng4+ {[%clk 0:01:20]}  Kg7 {[%clk 0:00:57]} 43. Qd3 {[%clk 0:01:15]}  Bd4 {[%clk 0:00:55]} 44. Nxe5 {[%clk 0:01:13]}  Qxe5 {[%clk 0:00:54]} 45. c5 {[%clk 0:01:11]}  Qxc5 {[%clk 0:00:54]} 46. Qb3 {[%clk 0:01:12]}  Qc3+ {[%clk 0:00:54]} 47. Qxc3 {[%clk 0:01:11]}  bxc3 {[%clk 0:00:55]} 48. e5 {[%clk 0:01:11]}  Bc8 {[%clk 0:00:54]} 0-1


[Site "https://www.chess.com"]

[Event "Titled Tuesday Blitz January 11 2022"]
[White "Pakleza, Zbigniew"]
[Black "Kim, Yoon-Young"]
[WhiteFideId "1119290"]
[BlackFideId "30908779"]
[WhiteElo "2467"]
[BlackElo "2109"]
[Result "0-1"]
[Round "05"]
[TimeControl "180+1"]
[Date "2022.01.11"]
[WhiteClock "0:00:10"]
[BlackClock "0:00:09"]

1. d4 {[%clk 0:03:00]}  d5 {[%clk 0:02:54]} 2. Bf4 {[%clk 0:03:00]}  Nf6 {[%clk 0:02:51]} 3. e3 {[%clk 0:02:59]}  e6 {[%clk 0:02:50]} 4. Nd2 {[%clk 0:02:57]}  c5 {[%clk 0:02:50]} 5. c3 {[%clk 0:02:57]}  Be7 {[%clk 0:02:50]} 6. Ngf3 {[%clk 0:02:57]}  Nc6 {[%clk 0:02:50]} 7. Bd3 {[%clk 0:02:57]}  Nh5 {[%clk 0:02:50]} 8. Be5 {[%clk 0:02:57]}  f6 {[%clk 0:02:51]} 9. Bg3 {[%clk 0:02:57]}  g6 {[%clk 0:02:51]} 10. O-O {[%clk 0:02:53]}  Nxg3 {[%clk 0:02:49]} 11. hxg3 {[%clk 0:02:54]}  cxd4 {[%clk 0:02:45]} 12. cxd4 {[%clk 0:02:48]}  O-O {[%clk 0:02:43]} 13. Rc1 {[%clk 0:02:47]}  Qb6 {[%clk 0:02:19]} 14. Qb3 {[%clk 0:02:43]}  Kg7 {[%clk 0:02:12]} 15. a3 {[%clk 0:02:35]}  Bd7 {[%clk 0:02:11]} 16. Rc3 {[%clk 0:02:28]}  g5 {[%clk 0:02:07]} 17. Rfc1 {[%clk 0:02:21]}  Rfc8 {[%clk 0:01:44]} 18. g4 {[%clk 0:01:56]}  Qc7 {[%clk 0:01:27]} 19. Qc2 {[%clk 0:01:44]}  h5 {[%clk 0:01:07]} 20. gxh5 {[%clk 0:01:23]}  g4 {[%clk 0:00:59]} 21. Nh4 {[%clk 0:01:16]}  f5 {[%clk 0:00:54]} 22. Nxf5+ {[%clk 0:00:59]}  exf5 {[%clk 0:00:54]} 23. Bxf5 {[%clk 0:01:00]}  Qd6 {[%clk 0:00:46]} 24. Bxd7 {[%clk 0:00:58]}  Qxd7 {[%clk 0:00:47]} 25. Qg6+ {[%clk 0:00:58]}  Kh8 {[%clk 0:00:45]} 26. Nf1 {[%clk 0:00:27]}  Qd6 {[%clk 0:00:39]} 27. Qxg4 {[%clk 0:00:25]}  Rg8 {[%clk 0:00:39]} 28. Qh3 {[%clk 0:00:20]}  Raf8 {[%clk 0:00:39]} 29. Ng3 {[%clk 0:00:19]}  Bg5 {[%clk 0:00:33]} 30. b4 {[%clk 0:00:15]}  a6 {[%clk 0:00:31]} 31. Rf1 {[%clk 0:00:12]}  Qf6 {[%clk 0:00:30]} 32. Rc2 {[%clk 0:00:11]}  Bh4 {[%clk 0:00:27]} 33. Nh1 {[%clk 0:00:07]}  Bg5 {[%clk 0:00:24]} 34. f4 {[%clk 0:00:07]}  Bh6 {[%clk 0:00:22]} 35. g4 {[%clk 0:00:08]}  Qe6 {[%clk 0:00:19]} 36. Rg2 {[%clk 0:00:07]}  Re8 {[%clk 0:00:15]} 37. Rf3 {[%clk 0:00:08]}  Qe4 {[%clk 0:00:13]} 38. g5 {[%clk 0:00:08]}  Bg7 {[%clk 0:00:13]} 39. Nf2 {[%clk 0:00:08]}  Qb1+ {[%clk 0:00:12]} 40. Kh2 {[%clk 0:00:08]}  Bxd4 {[%clk 0:00:06]} 41. exd4 {[%clk 0:00:09]}  Nxd4 {[%clk 0:00:07]} 42. Re3 {[%clk 0:00:08]}  Nf5 {[%clk 0:00:04]} 43. Re5 {[%clk 0:00:07]}  Rxe5 {[%clk 0:00:03]} 44. fxe5 {[%clk 0:00:07]}  Ng7 {[%clk 0:00:02]} 45. h6 {[%clk 0:00:07]}  Ne8 {[%clk 0:00:02]} 46. g6 {[%clk 0:00:07]}  Rxg6 {[%clk 0:00:02]} 47. Rxg6 {[%clk 0:00:06]}  Qxg6 {[%clk 0:00:03]} 48. Ng4 {[%clk 0:00:06]}  Qe6 {[%clk 0:00:03]} 49. Qf3 {[%clk 0:00:06]}  Kh7 {[%clk 0:00:03]} 50. Kg3 {[%clk 0:00:06]}  Qe7 {[%clk 0:00:03]} 51. Qf5+ {[%clk 0:00:06]}  Kh8 {[%clk 0:00:04]} 52. Qg6 {[%clk 0:00:05]}  Nc7 {[%clk 0:00:04]} 53. Kh3 {[%clk 0:00:04]}  Ne6 {[%clk 0:00:04]} 54. Nf6 {[%clk 0:00:04]}  Nf4+ {[%clk 0:00:01]} 55. Kg4 {[%clk 0:00:04]}  Nxg6 {[%clk 0:00:01]} 56. Kf5 {[%clk 0:00:05]}  Qxe5+ {[%clk 0:00:02]} 57. Kxg6 {[%clk 0:00:05]}  Qe6 {[%clk 0:00:03]} 58. h7 {[%clk 0:00:05]}  d4 {[%clk 0:00:03]} 59. Kg5 {[%clk 0:00:06]}  Qe5+ {[%clk 0:00:03]} 60. Kg6 {[%clk 0:00:07]}  Qxf6+ {[%clk 0:00:04]} 61. Kxf6 {[%clk 0:00:07]}  d3 {[%clk 0:00:05]} 62. Ke5 {[%clk 0:00:08]}  d2 {[%clk 0:00:06]} 63. Kd6 {[%clk 0:00:09]}  d1=Q+ {[%clk 0:00:07]} 64. Kc7 {[%clk 0:00:10]}  Qa4 {[%clk 0:00:07]} 65. Kxb7 {[%clk 0:00:10]}  Qxa3 {[%clk 0:00:08]} 66. Kb6 {[%clk 0:00:09]}  Qxb4+ {[%clk 0:00:08]} 67. Kxa6 {[%clk 0:00:10]}  Qe7 {[%clk 0:00:09]} 0-1


[Site "https://www.chess.com"]

[Event "Titled Tuesday Blitz January 11 2022"]
[White "Panesar Vedant"]
[Black "Willow, Jonah B"]
[WhiteFideId "35033018"]
[BlackFideId "438804"]
[WhiteElo "1971"]
[BlackElo "2261"]
[Result "1-0"]
[Round "05"]
[TimeControl "180+1"]
[Date "2022.01.11"]
[WhiteClock "0:00:19"]
[BlackClock "0:00:02"]

1. d4 {[%clk 0:03:00]}  Nf6 {[%clk 0:03:00]} 2. Nf3 {[%clk 0:03:00]}  e6 {[%clk 0:02:56]} 3. c4 {[%clk 0:02:58]}  c5 {[%clk 0:02:55]} 4. d5 {[%clk 0:02:58]}  exd5 {[%clk 0:02:56]} 5. cxd5 {[%clk 0:02:59]}  d6 {[%clk 0:02:55]} 6. e4 {[%clk 0:02:58]}  a6 {[%clk 0:02:49]} 7. Bd3 {[%clk 0:02:54]}  b5 {[%clk 0:02:41]} 8. a4 {[%clk 0:02:54]}  c4 {[%clk 0:02:33]} 9. Bc2 {[%clk 0:02:54]}  Bb7 {[%clk 0:02:33]} 10. O-O {[%clk 0:02:53]}  Be7 {[%clk 0:02:32]} 11. axb5 {[%clk 0:02:50]}  axb5 {[%clk 0:02:27]} 12. Rxa8 {[%clk 0:02:50]}  Bxa8 {[%clk 0:02:28]} 13. Na3 {[%clk 0:02:51]}  Qb6 {[%clk 0:02:21]} 14. Nxb5 {[%clk 0:02:50]}  O-O {[%clk 0:02:18]} 15. Na3 {[%clk 0:02:49]}  Rc8 {[%clk 0:02:15]} 16. Qd4 {[%clk 0:02:48]}  Qc7 {[%clk 0:02:00]} 17. Nh4 {[%clk 0:02:34]}  g6 {[%clk 0:01:20]} 18. Bg5 {[%clk 0:02:30]}  Nxd5 {[%clk 0:01:13]} 19. Bxe7 {[%clk 0:02:17]}  Nxe7 {[%clk 0:01:12]} 20. Rd1 {[%clk 0:02:08]}  d5 {[%clk 0:01:01]} 21. Qf6 {[%clk 0:01:51]}  Bc6 {[%clk 0:00:38]} 22. e5 {[%clk 0:01:22]}  Qd7 {[%clk 0:00:30]} 23. Nxc4 {[%clk 0:01:11]}  Qe6 {[%clk 0:00:17]} 24. Qxe6 {[%clk 0:01:04]}  fxe6 {[%clk 0:00:18]} 25. Nd6 {[%clk 0:01:02]}  Rf8 {[%clk 0:00:16]} 26. Nf3 {[%clk 0:01:00]}  Bd7 {[%clk 0:00:11]} 27. Nd4 {[%clk 0:00:56]}  Nbc6 {[%clk 0:00:10]} 28. Ba4 {[%clk 0:00:49]}  Ra8 {[%clk 0:00:03]} 29. Bxc6 {[%clk 0:00:40]}  Nxc6 {[%clk 0:00:04]} 30. Nxc6 {[%clk 0:00:40]}  Bxc6 {[%clk 0:00:05]} 31. b4 {[%clk 0:00:35]}  Ra2 {[%clk 0:00:04]} 32. b5 {[%clk 0:00:35]}  Ba8 {[%clk 0:00:02]} 33. h4 {[%clk 0:00:32]}  Rb2 {[%clk 0:00:02]} 34. Rc1 {[%clk 0:00:31]}  Kg7 {[%clk 0:00:03]} 35. Rc8 {[%clk 0:00:26]}  Bb7 {[%clk 0:00:01]} 36. Rc7+ {[%clk 0:00:26]}  Kh6 {[%clk 0:00:02]} 37. Rxb7 {[%clk 0:00:23]}  d4 {[%clk 0:00:02]} 38. g4 {[%clk 0:00:19]} 1-0


[Site "https://www.chess.com"]

[Event "Titled Tuesday Blitz January 11 2022"]
[White "Papasimakopoulos, Alexandros"]
[Black "Deac, Bogdan-Daniel"]
[WhiteFideId "4244125"]
[BlackFideId "1226380"]
[WhiteElo "2340"]
[BlackElo "2646"]
[Result "0-1"]
[Round "05"]
[TimeControl "180+1"]
[Date "2022.01.11"]
[WhiteClock "0:00:04"]
[BlackClock "0:00:12"]

1. d4 {[%clk 0:02:25]}  Nf6 {[%clk 0:02:58]} 2. c4 {[%clk 0:02:26]}  e6 {[%clk 0:02:58]} 3. Nc3 {[%clk 0:02:26]}  Bb4 {[%clk 0:02:58]} 4. Qc2 {[%clk 0:02:27]}  O-O {[%clk 0:02:47]} 5. a3 {[%clk 0:02:26]}  Bxc3+ {[%clk 0:02:46]} 6. Qxc3 {[%clk 0:02:27]}  d6 {[%clk 0:02:46]} 7. f3 {[%clk 0:02:27]}  Nh5 {[%clk 0:02:34]} 8. Nh3 {[%clk 0:02:16]}  e5 {[%clk 0:02:29]} 9. Nf2 {[%clk 0:02:09]}  Qe7 {[%clk 0:02:26]} 10. d5 {[%clk 0:02:00]}  a5 {[%clk 0:02:19]} 11. e4 {[%clk 0:01:47]}  a4 {[%clk 0:02:18]} 12. Bd3 {[%clk 0:01:42]}  Nd7 {[%clk 0:02:08]} 13. O-O {[%clk 0:01:41]}  Nf4 {[%clk 0:02:03]} 14. Re1 {[%clk 0:01:29]}  Nc5 {[%clk 0:01:42]} 15. Bf1 {[%clk 0:01:29]}  Nb3 {[%clk 0:01:40]} 16. Rb1 {[%clk 0:01:24]}  Nxc1 {[%clk 0:01:39]} 17. Rbxc1 {[%clk 0:01:25]}  b6 {[%clk 0:01:36]} 18. g3 {[%clk 0:01:25]}  Nh5 {[%clk 0:01:33]} 19. Bg2 {[%clk 0:01:19]}  Bd7 {[%clk 0:01:28]} 20. Nd3 {[%clk 0:01:18]}  Rae8 {[%clk 0:01:25]} 21. g4 {[%clk 0:00:57]}  Nf4 {[%clk 0:01:08]} 22. Nxf4 {[%clk 0:00:57]}  exf4 {[%clk 0:01:09]} 23. Qd4 {[%clk 0:00:54]}  h5 {[%clk 0:01:04]} 24. h3 {[%clk 0:00:51]}  Qg5 {[%clk 0:01:02]} 25. Qf2 {[%clk 0:00:43]}  Qe5 {[%clk 0:00:55]} 26. Red1 {[%clk 0:00:39]}  g6 {[%clk 0:00:48]} 27. Qd2 {[%clk 0:00:30]}  Qg5 {[%clk 0:00:43]} 28. Qf2 {[%clk 0:00:29]}  hxg4 {[%clk 0:00:30]} 29. hxg4 {[%clk 0:00:29]}  f5 {[%clk 0:00:28]} 30. exf5 {[%clk 0:00:20]}  gxf5 {[%clk 0:00:27]} 31. gxf5 {[%clk 0:00:20]}  Bxf5 {[%clk 0:00:27]} 32. Re1 {[%clk 0:00:20]}  Re3 {[%clk 0:00:27]} 33. Re2 {[%clk 0:00:18]}  Bd3 {[%clk 0:00:21]} 34. Rd2 {[%clk 0:00:18]}  Rfe8 {[%clk 0:00:19]} 35. Rcd1 {[%clk 0:00:08]}  Re2 {[%clk 0:00:14]} 36. Rxe2 {[%clk 0:00:08]}  Rxe2 {[%clk 0:00:13]} 37. Rxd3 {[%clk 0:00:09]}  Rxf2 {[%clk 0:00:13]} 38. Kxf2 {[%clk 0:00:10]}  Qe5 {[%clk 0:00:13]} 39. Rb3 {[%clk 0:00:04]}  axb3 {[%clk 0:00:12]} 0-1


[Site "https://www.chess.com"]